Body Name,Document Number,Service,Type of Expenditure,Invoice Date,Supplier Name,Cost to the Council (Amount Exc VAT),Month
EREWASH BOROUGH COUNCIL,529,Development Control           ,Consultants Fees              ,31-May-2021,IDOM MEREBROOK LTD                      ,"2,812.50",Jun-21
EREWASH BOROUGH COUNCIL,434,Car Parking                   ,Reactive Maintenance          ,16-Jun-2021,ILKESTON FENCING LIMITED                ,833.00,Jun-21
EREWASH BOROUGH COUNCIL,94,Green Space                   ,Materials/Consumables         ,01-Jun-2021,ILKESTON PLY & DIY LTD                  ,577.50,Jun-21
EREWASH BOROUGH COUNCIL,82,Green Space                   ,Materials/Consumables         ,14-Jan-2021,ILKESTON PLY & DIY LTD                  ,343.75,Jun-21
EREWASH BOROUGH COUNCIL,233,Car Parking                   ,Credit/Debit Card Charges     ,31-May-2021,INTERNATIONAL PARKING SYSTEMS UK LTD    ,642.48,Jun-21
EREWASH BOROUGH COUNCIL,45,Property and Estates          ,External Property Works       ,07-Jun-2021,J TOMLINSON LIMITED                     ,"184,352.31",Jun-21
EREWASH BOROUGH COUNCIL,458,Environmental & Housing Serv  ,Disabled Facilities Grant     ,21-Jun-2021,KARL KING                               ,"8,205.00",Jun-21
EREWASH BOROUGH COUNCIL,485,EBC Balance Sheet             ,Childcare Salary Sacrifice    ,04-Jun-2021,KIDDIVOUCHERS LTD                       ,896.00,Jun-21
EREWASH BOROUGH COUNCIL,227,Car Parking                   ,Contracted Services           ,31-May-2021,KINGS ARMOURED SECURITY SERVICES        ,"1,374.45",Jun-21
EREWASH BOROUGH COUNCIL,428,Household Waste Collection    ,Agency Staff                  ,27-May-2021,QUALITY SERVICE RECRUITMENT LTD         ,588.74,Jun-21
EREWASH BOROUGH COUNCIL,428,Kerbside Recycling Collection ,Agency Staff                  ,27-May-2021,QUALITY SERVICE RECRUITMENT LTD         ,392.50,Jun-21
EREWASH BOROUGH COUNCIL,479,Transport Trading Account     ,Agency Staff                  ,01-Jun-2021,QUESTECH RECRUITMENT LTD                ,906.50,Jun-21
EREWASH BOROUGH COUNCIL,309,Building Control - Fee Earning,Consultants Fees              ,01-Jun-2021,RANSOMWOOD ESTATES UK LIMITED           ,531.67,Jun-21
EREWASH BOROUGH COUNCIL,67,EBC Balance Sheet             ,Parliamentary Election & Refdm,28-Jun-2021,ROYAL MAIL GROUP LTD.                   ,722.65,Jun-21
EREWASH BOROUGH COUNCIL,168,Green Space                   ,General Equipment             ,20-May-2021,SAFETY SIGNS & NOTICES                  ,297.00,Jun-21
EREWASH BOROUGH COUNCIL,264,Licensing - Health Services   ,Veterinary Fees               ,03-Jun-2021,SCARSDALE VETS                          ,420.00,Jun-21
EREWASH BOROUGH COUNCIL,301,Property and Estates          ,Licences                      ,31-May-2021,SYSTEMSLINK 2000 LTD                    ,"1,730.00",Jun-21
EREWASH BOROUGH COUNCIL,475,Trade Waste                   ,Repairs and Maintenance       ,26-May-2021,DENNIS EAGLE LTD                        ,401.45,Jun-21
EREWASH BOROUGH COUNCIL,4377,Non Domestic Rates Retention  ,NNDR Tariff                   ,21-Jun-2021,DERBY CITY COUNCIL                      ,"585,635.60",Jun-21
EREWASH BOROUGH COUNCIL,232,EBC Balance Sheet             ,Parliamentary Election & Refdm,26-May-2021,DERBYSHIRE COMM HEALTH  SERVS NHS FT    ,250.94,Jun-21
EREWASH BOROUGH COUNCIL,515,EBC Balance Sheet             ,Payroll Coll Acc Credit Union ,22-Jun-2021,DERBYSHIRE COMMUNITY BANK               ,330.00,Jun-21
EREWASH BOROUGH COUNCIL,295,EBC Balance Sheet             ,Payroll Coll Acc Superanuation,14-Jun-2021,DERBYSHIRE COUNTY COUNCIL...            ,"123,997.03",Jun-21
EREWASH BOROUGH COUNCIL,295,EBC Balance Sheet             ,Payroll Coll Acc Superanuation,14-Jun-2021,DERBYSHIRE COUNTY COUNCIL...            ,"83,250.00",Jun-21
EREWASH BOROUGH COUNCIL,444,Home Energy Conservation      ,Contribution to Shared Service,21-May-2021,DERBYSHIRE COUNTY COUNCIL...            ,"3,500.00",Jun-21
EREWASH BOROUGH COUNCIL,219,Street Scene                  ,Training                      ,09-Jun-2021,DIAMOND DRIVER TRAINING                 ,"1,300.00",Jun-21
EREWASH BOROUGH COUNCIL,134,Green Space                   ,Hire Charges                  ,28-May-2021,ENTERPRISE FLEX E RENT                  ,504.84,Jun-21
EREWASH BOROUGH COUNCIL,484,EBC Balance Sheet             ,Payroll Coll Acc Labour Party ,21-Jun-2021,EREWASH LABOUR GROUP                    ,509.32,Jun-21
EREWASH BOROUGH COUNCIL,305,Economic Development          ,Grants and Subscriptions      ,06-Apr-2021,EREWASH PARTNERSHIP LTD                 ,"19,625.00",Jun-21
EREWASH BOROUGH COUNCIL,23,Civic Accommodation Long Eaton,Alarms Reactive Maintenance   ,27-May-2021,TECSERV UK                              ,383.68,Jun-21
EREWASH BOROUGH COUNCIL,480,Kerbside Recycling Collection ,Repairs and Maintenance       ,28-May-2021,TERBERG MATEC UK                        ,343.24,Jun-21
EREWASH BOROUGH COUNCIL,2939,Green Space                   ,Fuel                          ,06-Jun-2021,THE RIGHT FUELCARD COMPANY LTD          ,417.93,Jun-21
EREWASH BOROUGH COUNCIL,2941,Green Space                   ,Fuel                          ,13-Jun-2021,THE RIGHT FUELCARD COMPANY LTD          ,435.00,Jun-21
EREWASH BOROUGH COUNCIL,2945,Green Space                   ,Fuel                          ,27-Jun-2021,THE RIGHT FUELCARD COMPANY LTD          ,448.41,Jun-21
EREWASH BOROUGH COUNCIL,2947,Green Space                   ,Fuel                          ,20-Jun-2021,THE RIGHT FUELCARD COMPANY LTD          ,582.40,Jun-21
EREWASH BOROUGH COUNCIL,252,Registration of Electors      ,Subscriptions                 ,01-Jun-2021,THOMSON REUTERS                         ,288.00,Jun-21
EREWASH BOROUGH COUNCIL,35,Trees Hedges Local Nature Res ,Contracted Services           ,26-May-2021,TOM RICHARDS TREE SERVICES              ,600.00,Jun-21
EREWASH BOROUGH COUNCIL,505,Household Waste Collection    ,Agency Staff                  ,15-May-2021,TOTAL TRANSPORT COMPLIANCE              ,"2,125.00",Jun-21
EREWASH BOROUGH COUNCIL,50,Household Waste Collection    ,Agency Staff                  ,07-Jun-2021,TOTAL TRANSPORT COMPLIANCE              ,"1,500.00",Jun-21
EREWASH BOROUGH COUNCIL,512,EBC Balance Sheet             ,Payroll Coll Acc - Trade Union,22-Jun-2021,UNISON                                  ,422.40,Jun-21
EREWASH BOROUGH COUNCIL,136,Street Scene                  ,Materials/Consumables         ,17-May-2021,WARD RECYCLING                          ,598.00,Jun-21
EREWASH BOROUGH COUNCIL,135,Green Space                   ,Materials/Consumables         ,31-May-2021,WARD RECYCLING                          ,827.00,Jun-21
EREWASH BOROUGH COUNCIL,531,Kerbside Recycling Collection ,Repairs and Maintenance       ,28-May-2021,WILLIAM WEST & SONS (ILKESTON) LIMITED  ,577.69,Jun-21
EREWASH BOROUGH COUNCIL,429,Household Waste Collection    ,Agency Staff                  ,22-May-2021,WORKCHAIN LTD                           ,"1,270.51",Jun-21
EREWASH BOROUGH COUNCIL,429,Kerbside Recycling Collection ,Agency Staff                  ,22-May-2021,WORKCHAIN LTD                           ,847.00,Jun-21
EREWASH BOROUGH COUNCIL,431,Household Waste Collection    ,Agency Staff                  ,15-May-2021,WORKCHAIN LTD                           ,"1,735.27",Jun-21
EREWASH BOROUGH COUNCIL,431,Kerbside Recycling Collection ,Agency Staff                  ,15-May-2021,WORKCHAIN LTD                           ,"1,136.85",Jun-21
EREWASH BOROUGH COUNCIL,433,Household Waste Collection    ,Agency Staff                  ,08-May-2021,WORKCHAIN LTD                           ,"2,196.17",Jun-21
EREWASH BOROUGH COUNCIL,433,Kerbside Recycling Collection ,Agency Staff                  ,08-May-2021,WORKCHAIN LTD                           ,"1,464.11",Jun-21
EREWASH BOROUGH COUNCIL,415,Insurances (Corporate Matters),Insurance                     ,27-Apr-2021,ZURICH MUNICIPAL                        ,"1,734.04",Jun-21
EREWASH BOROUGH COUNCIL,424,Insurances (Corporate Matters),Insurance                     ,27-Apr-2021,ZURICH MUNICIPAL                        ,"15,998.68",Jun-21
EREWASH BOROUGH COUNCIL,507,Pedestrian Zones - Ilk and LE ,Reactive Maintenance          ,01-Jun-2021,N B CONSTRUCTION                        ,"1,171.94",Jun-21
EREWASH BOROUGH COUNCIL,441,Homelessness                  ,Temporary Accommodation       ,01-Jun-2021,NOVOTEL NOTTINGHAM                      ,728.62,Jun-21
EREWASH BOROUGH COUNCIL,259,Homelessness                  ,Temporary Accommodation       ,01-Jun-2021,NOVOTEL NOTTINGHAM                      ,"1,328.66",Jun-21
EREWASH BOROUGH COUNCIL,261,Homelessness                  ,Temporary Accommodation       ,01-Jun-2021,NOVOTEL NOTTINGHAM                      ,"1,328.66",Jun-21
EREWASH BOROUGH COUNCIL,262,Homelessness                  ,Temporary Accommodation       ,01-Jun-2021,NOVOTEL NOTTINGHAM                      ,"1,328.66",Jun-21
EREWASH BOROUGH COUNCIL,263,Homelessness                  ,Temporary Accommodation       ,01-Jun-2021,NOVOTEL NOTTINGHAM                      ,"1,328.66",Jun-21
EREWASH BOROUGH COUNCIL,314,Homelessness                  ,Temporary Accommodation       ,18-Apr-2021,NOVOTEL NOTTINGHAM                      ,390.50,Jun-21
EREWASH BOROUGH COUNCIL,313,Homelessness                  ,Temporary Accommodation       ,02-May-2021,NOVOTEL NOTTINGHAM                      ,"1,257.22",Jun-21
EREWASH BOROUGH COUNCIL,316,Homelessness                  ,Temporary Accommodation       ,01-Mar-2021,NOVOTEL NOTTINGHAM                      ,"1,333.36",Jun-21
EREWASH BOROUGH COUNCIL,260,Homelessness                  ,Temporary Accommodation       ,31-May-2021,NOVOTEL NOTTINGHAM                      ,"1,157.22",Jun-21
EREWASH BOROUGH COUNCIL,311,Commissioned Projects         ,General Equipment             ,21-May-2021,PARKSIDE HIGH CIC                       ,"3,696.00",Jun-21
EREWASH BOROUGH COUNCIL,518,EBC Balance Sheet             ,EBC Fit for Work Scheme       ,22-Jun-2021,PARKWOOD LEISURE LTD                    ,520.50,Jun-21
EREWASH BOROUGH COUNCIL,451,Trade Waste                   ,Trade Waste                   ,16-Jun-2021,SS & SB LTD                             ,263.64,Jun-21
EREWASH BOROUGH COUNCIL,455,Development Control           ,Planning Fees                 ,18-Jun-2021,EP LEGAL  LIMITED                       ,462.00,Jun-21
EREWASH BOROUGH COUNCIL,522,Accountancy                   ,Reference Literature and Publi,22-Jun-2021,REDACTED PERSONAL DATA,"5,000.00",Jun-21
EREWASH BOROUGH COUNCIL,12,EBC Balance Sheet             ,COV19 Additional Restrictions ,04-Jun-2021,G & V CARS LTD                          ,"8,000.00",Jun-21
EREWASH BOROUGH COUNCIL,13,EBC Balance Sheet             ,COV19 Additional Restrictions ,03-Jun-2021,KEV JAMES DRIVER TRAINING LTD           ,"2,500.00",Jun-21
EREWASH BOROUGH COUNCIL,28,Community Grants              ,Grants and Subscriptions      ,04-Jun-2021,2ND LONG EATON ST JOHNS GUIDES          ,623.00,Jun-21
EREWASH BOROUGH COUNCIL,409,Street Scene                  ,Road Taxes                    ,17-Jun-2021,POST OFFICE                             ,280.00,Jun-21
EREWASH BOROUGH COUNCIL,246,Performance Management        ,Training                      ,25-May-2021,PDP TRAINING                            ,485.00,Jun-21
EREWASH BOROUGH COUNCIL,308,,,14-Jun-2021,PENHAM EXCEL LIMITED                    ,712.14,Jun-21
EREWASH BOROUGH COUNCIL,320,Development Control           ,Planning Fees                 ,15-Jun-2021,PORTALPLANQUEST LTD                     ,462.00,Jun-21
EREWASH BOROUGH COUNCIL,516,EBC Balance Sheet             ,Payroll Coll Acc - AVCS       ,22-Jun-2021,PRUDENTIAL                              ,"2,755.66",Jun-21
EREWASH BOROUGH COUNCIL,34,Civic Accommodation Ilkeston  ,Cleaning Materials            ,30-Apr-2020,BANNER GROUP LIMITED                    ,"-1,752.49",Jun-21
EREWASH BOROUGH COUNCIL,34,Civic Accommodation Long Eaton,Cleaning Materials            ,30-Apr-2020,BANNER GROUP LIMITED                    ,"1,500.00",Jun-21
EREWASH BOROUGH COUNCIL,34,Merlin Way Depot              ,Cleaning Materials            ,30-Apr-2020,BANNER GROUP LIMITED                    ,505.09,Jun-21
EREWASH BOROUGH COUNCIL,11,Civic Accommodation Ilkeston  ,Cleaning Materials            ,10-Oct-2020,BANNER GROUP LIMITED                    ,333.00,Jun-21
EREWASH BOROUGH COUNCIL,393,Green Space                   ,Materials/Consumables         ,09-Mar-2021,BANNER GROUP LIMITED                    ,250.00,Jun-21
EREWASH BOROUGH COUNCIL,393,Shopmobility - Ilkeston       ,Cleaning Materials            ,09-Mar-2021,BANNER GROUP LIMITED                    ,40.00,Jun-21
EREWASH BOROUGH COUNCIL,393,Shopmobility - Long Eaton     ,Cleaning Materials            ,09-Mar-2021,BANNER GROUP LIMITED                    ,30.00,Jun-21
EREWASH BOROUGH COUNCIL,393,Merlin Way Depot              ,Cleaning Materials            ,09-Mar-2021,BANNER GROUP LIMITED                    ,28.00,Jun-21
EREWASH BOROUGH COUNCIL,393,Civic Accommodation Long Eaton,Cleaning Materials            ,09-Mar-2021,BANNER GROUP LIMITED                    ,0.00,Jun-21
EREWASH BOROUGH COUNCIL,393,Civic Accommodation Ilkeston  ,Cleaning Materials            ,09-Mar-2021,BANNER GROUP LIMITED                    ,0.00,Jun-21
EREWASH BOROUGH COUNCIL,407,Green Space                   ,Materials/Consumables         ,20-Mar-2020,BANNER GROUP LIMITED                    ,0.00,Jun-21
EREWASH BOROUGH COUNCIL,407,Shopmobility - Ilkeston       ,Cleaning Materials            ,20-Mar-2020,BANNER GROUP LIMITED                    ,0.00,Jun-21
EREWASH BOROUGH COUNCIL,407,Shopmobility - Long Eaton     ,Cleaning Materials            ,20-Mar-2020,BANNER GROUP LIMITED                    ,0.00,Jun-21
EREWASH BOROUGH COUNCIL,407,Merlin Way Depot              ,Cleaning Materials            ,20-Mar-2020,BANNER GROUP LIMITED                    ,0.00,Jun-21
EREWASH BOROUGH COUNCIL,407,Civic Accommodation Long Eaton,Cleaning Materials            ,20-Mar-2020,BANNER GROUP LIMITED                    ,0.00,Jun-21
EREWASH BOROUGH COUNCIL,407,Civic Accommodation Ilkeston  ,Cleaning Materials            ,20-Mar-2020,BANNER GROUP LIMITED                    ,406.00,Jun-21
EREWASH BOROUGH COUNCIL,396,Green Space                   ,Materials/Consumables         ,17-Jun-2021,BANNER GROUP LIMITED                    ,0.00,Jun-21
EREWASH BOROUGH COUNCIL,396,Shopmobility - Ilkeston       ,Cleaning Materials            ,17-Jun-2021,BANNER GROUP LIMITED                    ,0.00,Jun-21
EREWASH BOROUGH COUNCIL,396,Shopmobility - Long Eaton     ,Cleaning Materials            ,17-Jun-2021,BANNER GROUP LIMITED                    ,0.00,Jun-21
EREWASH BOROUGH COUNCIL,396,Merlin Way Depot              ,Cleaning Materials            ,17-Jun-2021,BANNER GROUP LIMITED                    ,0.00,Jun-21
EREWASH BOROUGH COUNCIL,396,Civic Accommodation Long Eaton,Cleaning Materials            ,17-Jun-2021,BANNER GROUP LIMITED                    ,0.00,Jun-21
EREWASH BOROUGH COUNCIL,396,Civic Accommodation Ilkeston  ,Cleaning Materials            ,17-Jun-2021,BANNER GROUP LIMITED                    ,440.40,Jun-21
EREWASH BOROUGH COUNCIL,404,Green Space                   ,Materials/Consumables         ,08-Nov-2020,BANNER GROUP LIMITED                    ,0.00,Jun-21
EREWASH BOROUGH COUNCIL,404,Shopmobility - Ilkeston       ,Cleaning Materials            ,08-Nov-2020,BANNER GROUP LIMITED                    ,0.00,Jun-21
EREWASH BOROUGH COUNCIL,404,Shopmobility - Long Eaton     ,Cleaning Materials            ,08-Nov-2020,BANNER GROUP LIMITED                    ,0.00,Jun-21
EREWASH BOROUGH COUNCIL,404,Merlin Way Depot              ,Cleaning Materials            ,08-Nov-2020,BANNER GROUP LIMITED                    ,0.00,Jun-21
EREWASH BOROUGH COUNCIL,404,Civic Accommodation Long Eaton,Cleaning Materials            ,08-Nov-2020,BANNER GROUP LIMITED                    ,0.00,Jun-21
EREWASH BOROUGH COUNCIL,404,Civic Accommodation Ilkeston  ,Cleaning Materials            ,08-Nov-2020,BANNER GROUP LIMITED                    ,539.50,Jun-21
EREWASH BOROUGH COUNCIL,402,Green Space                   ,Materials/Consumables         ,18-Aug-2020,BANNER GROUP LIMITED                    ,0.00,Jun-21
EREWASH BOROUGH COUNCIL,402,Shopmobility - Ilkeston       ,Cleaning Materials            ,18-Aug-2020,BANNER GROUP LIMITED                    ,0.00,Jun-21
EREWASH BOROUGH COUNCIL,402,Shopmobility - Long Eaton     ,Cleaning Materials            ,18-Aug-2020,BANNER GROUP LIMITED                    ,0.00,Jun-21
EREWASH BOROUGH COUNCIL,402,Merlin Way Depot              ,Cleaning Materials            ,18-Aug-2020,BANNER GROUP LIMITED                    ,0.00,Jun-21
EREWASH BOROUGH COUNCIL,402,Civic Accommodation Long Eaton,Cleaning Materials            ,18-Aug-2020,BANNER GROUP LIMITED                    ,0.00,Jun-21
EREWASH BOROUGH COUNCIL,402,Civic Accommodation Ilkeston  ,Cleaning Materials            ,18-Aug-2020,BANNER GROUP LIMITED                    ,681.57,Jun-21
EREWASH BOROUGH COUNCIL,272,ICT Support Services          ,Telephones                    ,22-May-2021,BRITISH TELECOMMUNICATIONS PLC          ,"1,651.80",Jun-21
EREWASH BOROUGH COUNCIL,30,Street Scene                  ,Bins                          ,27-May-2021,BROXAP LIMITED                          ,420.00,Jun-21
EREWASH BOROUGH COUNCIL,78,Street Scene                  ,Repairs and Maintenance       ,09-Mar-2021,BUCHER MUNICIPAL LTD                    ,302.34,Jun-21
EREWASH BOROUGH COUNCIL,31,Street Scene                  ,Repairs and Maintenance       ,28-May-2021,BUCHER MUNICIPAL LTD                    ,549.82,Jun-21
EREWASH BOROUGH COUNCIL,732,Treasury and Bank Charges     ,Credit/Debit Card Charges     ,09-Jun-2021,CAPITA                                  ,"3,328.41",Jun-21
EREWASH BOROUGH COUNCIL,253,ICT Support Services          ,Mobile Phones                 ,11-Jun-2021,CLASS AFFINITY PROJECTS LTD             ,"2,052.62",Jun-21
EREWASH BOROUGH COUNCIL,74,Civic Accommodation Long Eaton,Cleaning Materials            ,07-Jun-2021,CROMWELL POLYTHENE LTD                  ,326.56,Jun-21
EREWASH BOROUGH COUNCIL,49,Civic Transport               ,Hire Charges                  ,01-Jun-2021,CRUISE-IN-CONTROL LIMITED               ,"1,316.20",Jun-21
EREWASH BOROUGH COUNCIL,27,Street Scene                  ,Agency Staff                  ,17-May-2021,EXTRA PERSONNEL LTD                     ,"4,820.96",Jun-21
EREWASH BOROUGH COUNCIL,269,Street Scene                  ,Agency Staff                  ,31-May-2021,EXTRA PERSONNEL LTD                     ,"2,443.44",Jun-21
EREWASH BOROUGH COUNCIL,269,Green Space                   ,Agency Staff                  ,31-May-2021,EXTRA PERSONNEL LTD                     ,"2,443.44",Jun-21
EREWASH BOROUGH COUNCIL,271,Street Scene                  ,Agency Staff                  ,31-May-2021,EXTRA PERSONNEL LTD                     ,"2,479.16",Jun-21
EREWASH BOROUGH COUNCIL,271,Green Space                   ,Agency Staff                  ,31-May-2021,EXTRA PERSONNEL LTD                     ,"2,479.16",Jun-21
EREWASH BOROUGH COUNCIL,223,Revenues and Benefits         ,Postages                      ,01-Jun-2021,FRAMA UK LIMITED                        ,318.27,Jun-21
EREWASH BOROUGH COUNCIL,20,Finance                       ,Software and Implementation   ,31-May-2021,ADVANCED BUSINESS SOFTWARE & SOLUTIONS L,"12,802.70",Jun-21
EREWASH BOROUGH COUNCIL,3716,Treasury and Bank Charges     ,Allpay/Post Office Charges    ,30-Jun-2021,ALLPAY LIMITED                          ,"1,026.19",Jun-21
EREWASH BOROUGH COUNCIL,54,ICT Support Services          ,Office Paper                  ,02-Jun-2021,ANTALIS DOCUMENT SUPPLIES               ,253.00,Jun-21
EREWASH BOROUGH COUNCIL,442,Green Space                   ,Materials/Consumables         ,01-Jun-2021,AQUAM WATER SERVICES LIMITED            ,"1,230.00",Jun-21
EREWASH BOROUGH COUNCIL,443,Green Space                   ,Materials/Consumables         ,01-Jun-2021,AQUAM WATER SERVICES LIMITED            ,"1,230.00",Jun-21
EREWASH BOROUGH COUNCIL,293,Transport Trading Account     ,Repairs and Maintenance       ,14-Jun-2021,ATTENBOROUGH DOORS LTD                  ,"1,185.00",Jun-21
EREWASH BOROUGH COUNCIL,2303,Kerbside Recycling Collection ,Road Taxes                    ,02-Jun-2021,LLOYDS BANK PLC                         ,302.50,Jun-21
EREWASH BOROUGH COUNCIL,2303,Dog Control                   ,Materials/Consumables         ,02-Jun-2021,LLOYDS BANK PLC                         ,391.96,Jun-21
EREWASH BOROUGH COUNCIL,2303,Democratic Representation     ,Communications costs          ,02-Jun-2021,LLOYDS BANK PLC                         ,393.60,Jun-21
EREWASH BOROUGH COUNCIL,2327,Treasury and Bank Charges     ,Bank Charges                  ,10-Jun-2021,LLOYDS BANK PLC                         ,545.22,Jun-21
EREWASH BOROUGH COUNCIL,483,Household Waste Collection    ,Tyres                         ,29-May-2021,LODGE TYRE COMPANY LTD                  ,"3,041.70",Jun-21
EREWASH BOROUGH COUNCIL,483,Kerbside Recycling Collection ,Tyres                         ,29-May-2021,LODGE TYRE COMPANY LTD                  ,"1,455.30",Jun-21
EREWASH BOROUGH COUNCIL,483,Street Scene                  ,Tyres                         ,29-May-2021,LODGE TYRE COMPANY LTD                  ,"1,182.77",Jun-21
EREWASH BOROUGH COUNCIL,483,Green Space                   ,Tyres                         ,29-May-2021,LODGE TYRE COMPANY LTD                  ,449.95,Jun-21
EREWASH BOROUGH COUNCIL,8,Finance                       ,Software and Implementation   ,30-May-2021,MACILDOWIE RECRUITMENT EXPERTISE        ,"1,263.18",Jun-21
EREWASH BOROUGH COUNCIL,255,Car Parking                   ,Contracted Services           ,01-Jun-2021,METRIC GROUP LTD                        ,"1,464.75",Jun-21
EREWASH BOROUGH COUNCIL,257,Car Parking                   ,Contracted Services           ,30-Apr-2021,METRIC GROUP LTD                        ,"2,447.93",Jun-21
EREWASH BOROUGH COUNCIL,502,Trade Waste                   ,Bins                          ,01-Jun-2021,MGB PLASTICS LTD                        ,325.00,Jun-21
EREWASH BOROUGH COUNCIL,502,Household Waste Collection    ,Bins                          ,01-Jun-2021,MGB PLASTICS LTD                        ,500.00,Jun-21
EREWASH BOROUGH COUNCIL,500,Household Waste Collection    ,Bins                          ,27-May-2021,MGB PLASTICS LTD                        ,"3,792.00",Jun-21
EREWASH BOROUGH COUNCIL,500,Kerbside Recycling Collection ,Bins                          ,27-May-2021,MGB PLASTICS LTD                        ,"3,792.00",Jun-21
EREWASH BOROUGH COUNCIL,4372,EBC Balance Sheet             ,NNDR Coll Fund Control Account,21-Jun-2021,MHCLG-DEPARTMENT FOR COMMUNITES & LOCAL ,"1,099,104.00",Jun-21
EREWASH BOROUGH COUNCIL,4410,EBC Balance Sheet             ,NNDR Coll Fund Control Account,21-Jun-2021,MHCLG-DEPARTMENT FOR COMMUNITES & LOCAL ,"1,099,104.00",Jun-21
